Cogmind - Beta 17 @@@ ROGUE MODE // 2026.07.23 @ 21:33:35 Player: Akl Result: Destroyed by P-60 Hacker with Shock Rifle Performance ------------- Evolutions (4) 2000 Regions Visited (7) 1400 Robots Destroyed (18) 90 Value Destroyed (408) 408 Prototype IDs (4) 80 Alien Tech Used (0) 0 Bonus (1130) 1130 TOTAL SCORE: 5108 Bonus ------- Follower Combat Kills 572 Met Imprinter 300 Was Imprinted 300 Friendly Fire -42 Cogmind --------- Core Integrity 0/850 Matter 300/300 Energy 95/100 System Corruption 7% Temperature Cool (0) Movement Core (50) Location -6/Lower Caves Parts ------- > --- POWER (2) -------- (None) > --- PROPULSION (4) --- (None) > --- UTILITY (6) ------ Enhanced Optical Array Advanced Signal Interpreter Improved Terrain Scan Processor > --- WEAPON (3) ------- CR-A16's Pointy Stick > --- INVENTORY (5) ---- Fusion Compressor Improved Datajack Enhanced Flamer Peak State ------------ > --- POWER ------------ Light Angular Momentum Engine > --- PROPULSION ------- Flexi-carbon Leg Improved Gravmag System VTOL Module VTOL Module > --- UTILITY ---------- Enhanced Optical Array Experimental Sensor Array Advanced Signal Interpreter Improved Terrain Scanner Improved Terrain Scan Processor System Shield > --- WEAPON ----------- Battle Rifle Battle Rifle CR-A16's Pointy Stick > --- INVENTORY -------- Improved Datajack Enhanced Flamer [Rating: 55] Favorites ----------- Power Light Angular Momentum Engine Engine Light Angular Momentum Engine Power Core Light Fission Core Propulsion Flight Unit Leg Flexi-carbon Leg Hover Unit Improved Gravmag System Flight Unit Flight Unit Utility System Shield Device Improved Terrain Scanner Processor Enhanced Optical Array Hackware System Shield Weapon Battle Rifle Energy Gun Heavy Laser Ballistic Gun Battle Rifle Launcher Grenade Launcher Piercing Weapon CR-A16's Pointy Stick Special Melee Weapon Improved Datajack Build | -11 -10 -9 -9 -7 -6 -6 -6 ------- Run | Yrd Mat Mat Min Zio Pro Fac Low Slots Evolved 8 | . . 2 . . . 6 . Power 1 | . . . . . . 1 . Propulsion 2 | . . 1 . . . 1 . Utility 4 | . . 1 . . . 3 . Weapon 1 | . . . . . . 1 . Parts Attached 45 | 5 2 4 8 7 8 11 . Power 7 | . . 1 2 . 1 3 . Engine 4 | . . 1 2 . 1 . . Core 3 | . . . . . . 3 . Reactor . | . . . . . . . . Propulsion 13 | 2 1 . 3 . 3 4 . Treads . | . . . . . . . . Leg 3 | 2 . . . . 1 . . Wheel . | . . . . . . . . Hover 2 | . . . . . . 2 . Flight 8 | . 1 . 3 . 2 2 . Utility 12 | 1 . 2 . 4 1 4 . Device 5 | 1 . . . 3 . 1 . Storage . | . . . . . . . . Processor 5 | . . . . 1 1 3 . Hackware 2 | . . 2 . . . . . Protection . | . . . . . . . . Artifact . | . . . . . . . . Weapon 13 | 2 1 1 3 3 3 . . Energy Gun 2 | 1 . . . . 1 . . Energy Cannon . | . . . . . . . . Ballistic Gun 7 | 1 . . 3 1 2 . . Ballistic Cannon . | . . . . . . . . Launcher 1 | . 1 . . . . . . Special Weapon . | . . . . . . . . Impact Weapon . | . . . . . . . . Slashing Weapon . | . . . . . . . . Piercing Weapon 1 | . . . . 1 . . . Special Melee Weapon 2 | . . 1 . 1 . . . Unidentified Prototypes 4 | . . . . 3 . 1 . Parts Lost 19 | . . . . . 5 12 2 Power 2 | . . . . . . 2 . Propulsion 9 | . . . . . 3 5 1 Utility 4 | . . . . . . 3 1 Weapon 4 | . . . . . 2 2 . Highest Loss Streak 7 | . . . . . 4 7 2 To Critical Strikes . | . . . . . . . . Average Backups 4 | 2 4 4 4 5 4 2 3 Power . | 1 2 1 1 . . . 1 Propulsion . | . . . . . . . . Utility 1 | . 1 1 2 2 2 . . Weapon 1 | . 1 1 . 1 1 1 1 Tool/Special . | . . . . . . . . Unused Backups 3 | . . . 1 . 1 . 1 Power . | . . . . . . . . Propulsion . | . . . . . . . . Utility 1 | . . . 1 . . . . Weapon 2 | . . . . . 1 . 1 Tool/Special . | . . . . . . . . Average Slot Usage (%) 84 | . 57 56 93 93 91 78 31 Engine 7 | . . . 8 11 11 4 . Leg 4 | . 26 10 4 . 4 3 . Hover 1 | . . . . . . 5 . Flight 20 | . 1 11 26 33 22 10 1 Device 6 | . 14 11 11 4 . 9 . Processor 9 | . . . . . 11 20 23 Hackware 15 | . . 9 22 22 22 5 . Ballistic Gun 13 | . 14 11 19 13 15 9 . Piercing Weapon 1 | . . . . 1 . 3 6 Special Melee Weapon 2 | . . 4 . 6 1 . . Peak Build Rating 55 | 6 7 16 16 28 31 55 22 Average Rating 26 | 3 6 10 14 18 24 45 18 On Entrance 14 | . 6 6 15 16 20 31 22 Avg Prop Armor Cover (%) 13 | 25 27 16 11 . 6 9 . Naked Turns . | . . . . . . . . Heaviest Build 24 | 3 4 3 10 15 13 24 3 Greatest Support 20 | 3 4 4 12 12 20 20 4 Greatest Overweight (x) 2 | . 1 . . 1 2 1 . Average Overweight (x) . | . . . . . . . . Largest Inventory Capacity 5 | 5 5 5 5 5 5 5 5 Average Capacity 5 | 5 5 5 5 5 5 5 5 Most Carried 5 | 4 5 5 5 5 5 4 3 Average Carried 4 | 2 4 4 4 4 4 2 3 Final Capacity 5 | 5 5 5 5 5 5 5 5 Final Carried 5 | 4 5 5 5 4 5 3 3 Class Distribution -------------------- 48% | Hacker-Mutant 12% | Mutant 11% | Scavenger-Mutant 10% | Scavenger-Skirmisher 10% | Scavenger-Assassin 4% | Assassin Dominant Class ---------------- Mutant | -10/Materials Hacker-Mutant | -9/Materials Scavenger-Mutant | -9/Mines Hacker-Mutant | -7/Zion Hacker-Mutant | -6/Proximity Caves Scavenger-Assassin | -6/Factory Mutant | -6/Lower Caves Resources | -11 -10 -9 -9 -7 -6 -6 -6 ----------- Run | Yrd Mat Mat Min Zio Pro Fac Low Matter Collected 875 | 210 . . 19 285 188 173 . Remotely . | . . . . . . . . Salvage Created 394 | 82 10 . 31 . . 198 73 Parts 36 | 8 1 . 9 . . 10 8 Haulers Intercepted . | . . . . . . . . Recyclers Shooed . | . . . . . . . . Parts Field Recycled . | . . . . . . . . Retrieved Matter . | . . . . . . . . Parts Self-Destructed 36 | . . . . . 33 . 3 Prevented 1 | . . . . . 1 . . Parts Restored . | . . . . . . . . Kills | -11 -10 -9 -9 -7 -6 -6 -6 ------- Run | Yrd Mat Mat Min Zio Pro Fac Low Combat Hostiles Destroyed 15 | . . . 7 . . 5 3 Melee 6 | . . . . . . 3 3 Guns 2 | . . . . . . 2 . AOE 7 | . . . 7 . . . . Classes Destroyed 6 | 2 1 . 1 . . 2 . Tunneler 1 | 1 . . . . . . . Recycler 1 | 1 . . . . . . . Watcher 1 | . 1 . . . . . . Swarmer 12 | . . . 7 . . 2 3 Sentry 1 | . . . . . . 1 . Programmer 2 | . . . . . . 2 . Best Kill Streak 4 | 2 1 . 4 . . 1 3 Combat Bots Only 4 | . . . 4 . . 1 3 Max Kills in Single Turn 4 | 1 1 . 4 . . 1 1 Gunslinging . | . . . . . . . . Exploded 4 | . . . 4 . . . . Melee 1 | . . . . . . 1 1 Uniques/NPCs Destroyed . | . . . . . . . . Combat | -11 -10 -9 -9 -7 -6 -6 -6 -------- Run | Yrd Mat Mat Min Zio Pro Fac Low Hostile Shots Fired 260 | . 12 2 11 . 50 142 43 Missed 88 | . 5 1 4 . 13 53 12 Hits 172 | . 7 1 7 . 37 89 31 Melee 2 | . . . . . . 2 . Projectile 170 | . 7 1 7 . 37 87 31 AOE 2 | . 2 . . . . . . Critical Strikes 4 | . . . . . . 4 . Part Disruptions 1 | . . . . . . 1 . Damage Taken 2445 | . 254 18 100 . 594 1033 446 Core 1235 | . 103 . 49 . 218 452 413 Absorbed by Shields . | . . . . . . . . Core Remaining (%) 63 | 100 58 . . . 33 . . Volleys Fired 36 | 5 2 2 4 . 7 16 . Largest 2 | 2 1 1 1 . 2 2 . Hottest 70 | 70 30 20 30 . 58 50 . Shots Fired 46 | 10 2 2 4 . 10 18 . Gun 39 | 10 1 2 . . 8 18 . Cannon . | . . . . . . . . Launcher 7 | . 1 . 4 . 2 . . Special . | . . . . . . . . Kinetic 34 | 5 1 2 . . 8 18 . Thermal 5 | 5 . . . . . . . Explosive 7 | . 1 . 4 . 2 . . Electromagnetic . | . . . . . . . . Robot Hit Streak 10 | 8 . 10 1 . 3 9 . Robot Miss Streak 2 | . . . 1 . 2 1 . Penetration Max . | . . . . . . . . Secondary Targets . | . . . . . . . . Shots Hit Robots 42 | 8 . 2 1 1 4 22 4 Core Hits 29 | 3 1 1 8 . 4 9 3 Critical Kills . | . . . . . . . . Critical Parts Destroyed . | . . . . . . . . Critical Strikes 3 | . . . . . . 3 . Impale 3 | . . . . . . 3 . Melee Attacks 21 | . . . . 1 . 11 9 Impact . | . . . . . . . . Slashing . | . . . . . . . . Piercing 20 | . . . . . . 11 9 Sneak Attacks . | . . . . . . . . Combat Hostiles . | . . . . . . . . Follow-up Attacks . | . . . . . . . . Damage Inflicted 1205 | 85 39 15 341 . 127 471 127 Guns 394 | 85 . 15 . . 63 231 . Cannons . | . . . . . . . . Explosions 444 | . 39 . 341 . 64 . . Melee 367 | . . . . . . 240 127 Ramming . | . . . . . . . . Kinetic 331 | 22 . 15 . . 63 231 . Thermal 63 | 63 . . . . . . . Explosive 444 | . 39 . 341 . 64 . . Electromagnetic . | . . . . . . . . Impact . | . . . . . . . . Slashing . | . . . . . . . . Piercing 367 | . . . . . . 240 127 Highest Corruption 7 | . . . . . . 6 7 Average Corruption 5 | . . . . . . 5 6 Corruption Purged . | . . . . . . . . Corruption Blocked . | . . . . . . . . Effects 15 | . . . . . . 14 1 Message Errors 6 | . . . . . . 5 1 Matter Fused 3 | . . . . . . 3 . Heat Flow Errors 2 | . . . . . . 2 . Energy Discharges 1 | . . . . . . 1 . Data Loss (minor) 1 | . . . . . . 1 . Data Loss (major) 1 | . . . . . . 1 . Weapon Failures 1 | . . . . . . 1 . Overload Shots . | . . . . . . . . Overflow Damage 20 | . . . . . . 20 . Projectiles . | . . . . . . . . Explosions . | . . . . . . . . Melee 20 | . . . . . . 20 . Knockbacks . | . . . . . . . . Impact . | . . . . . . . . Kinetic . | . . . . . . . . Secondary . | . . . . . . . . Self-Inflicted Damage 47 | . . . 47 . . . . Shots 2 | . . . 2 . . . . Rammed . | . . . . . . . . Targets Rammed . | . . . . . . . . Kicked . | . . . . . . . . Crushed . | . . . . . . . . Highest Temperature 336 | 20 . . . . 12 336 . Average Temperature 75 | 15 . . . . 9 100 . Received Heat Transfer 309 | . 57 . . . 108 144 . Siege Activations . | . . . . . . . . Martial Activations . | . . . . . . . . Shielding Activations . | . . . . . . . . Robots Disrupted . | . . . . . . . . Combat Hostiles . | . . . . . . . . Robots Corrupted . | . . . . . . . . Combat Hostiles . | . . . . . . . . Parts Fried . | . . . . . . . . Impact Corruptions . | . . . . . . . . Robots Melted . | . . . . . . . . Combat Hostiles . | . . . . . . . . Parts Melted . | . . . . . . . . Heat Transferred 185 | 185 . . . . . . . Parts Sabotaged . | . . . . . . . . Parts Stolen . | . . . . . . . . Parts Stripped . | . . . . . . . . Power Chain Reactions . | . . . . . . . . Alert | -11 -10 -9 -9 -7 -6 -6 -6 ------- Run | Yrd Mat Mat Min Zio Pro Fac Low Maximum Alert Level . | . . . . . . . . Low Security (%) 100 | 100 100 100 100 . . 100 . Level 1 . | . . . . . . . . Level 2 . | . . . . . . . . Level 3 . | . . . . . . . . Level 4 . | . . . . . . . . Level 5 . | . . . . . . . . High Security . | . . . . . . . . Max Security . | . . . . . . . . Peak Influence 189 | 10 80 53 127 . . 189 . Initial 189 | . 6 33 5 . . 189 . Average 72 | 2 26 24 66 . . 91 . Influence Increases 1492 | 10 100 56 187 . 638 431 70 Destroy 0b10 Robot/C 720 | . . . 140 . 320 200 60 Destroy 0b10 Robot/NC 20 | 10 5 . . . . 5 . Destroy Leader 102 | . 2 . 20 . 30 40 10 Allied During Kill 347 | . . . . . 273 74 . Successful Hack 37 | . 14 11 . . . 12 . Destroy Structure 41 | . 4 . 27 . . 10 . Lose Combat Pursuer 225 | . 75 45 . . 15 90 . Influence Decreases 1388 | . 30 121 95 107 336 630 69 Entered New Map 320 | . 4 47 10 107 . 113 39 Time Decay 743 | . 26 30 85 . 266 326 10 Lost Part 190 | . . . . . 50 120 20 Lost Ally 91 | . . . . . 20 71 . Purge Threat 44 | . . 44 . . . . . Squads Dispatched 6 | . 1 . . . . 5 . Investigation 2 | . . . . . . 2 . Extermination 2 | . . . . . . 2 . Reinforcement 2 | . 1 . . . . 1 . Assault . | . . . . . . . . Garrison . | . . . . . . . . Intercept . | . . . . . . . . Searches Triggered . | . . . . . . . . Construction Impeded . | . . . . . . . . Haulers Reinforced . | . . . . . . . . Active Scanning Responses . | . . . . . . . . Cargo Convoy Interrupts . | . . . . . . . . Stealth | -11 -10 -9 -9 -7 -6 -6 -6 --------- Run | Yrd Mat Mat Min Zio Pro Fac Low Distress Signals 2 | . 1 1 . . . . . Communications Jammed . | . . . . . . . . Distress Signals . | . . . . . . . . Times Spotted 58 | . 7 5 7 . 14 20 5 Peak Tracking Total 7 | . 7 3 4 . 7 7 4 Tactical Retreats 6 | . 2 2 . . 1 1 . Traps | -11 -10 -9 -9 -7 -6 -6 -6 ------- Run | Yrd Mat Mat Min Zio Pro Fac Low Traps Triggered 2 | . . . . . . 2 . Indirectly . | . . . . . . . . Trap Hack Attempts . | . . . . . . . . Triggered . | . . . . . . . . Disarmed . | . . . . . . . . Reprogrammed . | . . . . . . . . Reused . | . . . . . . . . Traps Extracted . | . . . . . . . . Installed . | . . . . . . . . Triggered . | . . . . . . . . Machines | -11 -10 -9 -9 -7 -6 -6 -6 ---------- Run | Yrd Mat Mat Min Zio Pro Fac Low Machines Disabled 1 | . . . . . 1 . . Max in Single Turn . | . . . . . . . . Machines Repaired . | . . . . . . . . Machines Dismantled . | . . . . . . . . Machines Sabotaged . | . . . . . . . . Overloaded Fab Kills . | . . . . . . . . Hacking | -11 -10 -9 -9 -7 -6 -6 -6 --------- Run | Yrd Mat Mat Min Zio Pro Fac Low Machines Accessed 8 | . 3 1 . 1 1 2 . Terminals 5 | . 3 1 . . 1 . . Fabricators . | . . . . . . . . Repair Stations . | . . . . . . . . Recycling Units 2 | . . . . . . 2 . Scanalyzers . | . . . . . . . . Garrison Access . | . . . . . . . . Total Hacks 24 | . 8 4 . 2 8 2 . Successful 20 | . 4 4 . 2 8 2 . Failed 4 | . 4 . . . . . . Catastrophic . | . . . . . . . . Database Lockouts . | . . . . . . . . Manual 15 | . 6 2 . 1 . 6 . Terminals 20 | . 8 4 . . 8 . . Fabricators . | . . . . . . . . Repair Stations . | . . . . . . . . Recycling Units 2 | . . . . . . 2 . Scanalyzers . | . . . . . . . . Garrison Access . | . . . . . . . . Terminal Hacks 14 | . 1 3 . 2 8 . . Record 8 | . . . . . 8 . . Part Schematic 2 | . . . . 2 . . . Unreport Threat 1 | . . 1 . . . . . Locate Traps 1 | . . 1 . . . . . Zone Layout 2 | . 1 1 . . . . . Fabricator Hacks . | . . . . . . . . Repair Station Hacks . | . . . . . . . . Recycling Unit Hacks 1 | . . . . . . 1 . Retrieve Components 1 | . . . . . . 1 . Scanalyzer . | . . . . . . . . Garrison Access Hacks . | . . . . . . . . Unauthorized Hacks 5 | . 3 1 . . . 1 . Terminals 4 | . 3 1 . . . . . Botnet 4 | . 3 1 . . . . . Fabricators . | . . . . . . . . Repair Stations . | . . . . . . . . Recycling Units 1 | . . . . . . 1 . Reject 1 | . . . . . . 1 . Scanalyzers . | . . . . . . . . Garrison Access . | . . . . . . . . Data Cores Recovered . | . . . . . . . . Used . | . . . . . . . . Hacking Detections 5 | . 3 1 . . . 1 . Full Trace Events 1 | . 1 . . . . . . Feedback Events . | . . . . . . . . Feedback Blocked . | . . . . . . . . Robot Schematics Acquired . | . . . . . . . . Robots Built . | . . . . . . . . Authchips . | . . . . . . . . Time . | . . . . . . . . Total Robot Build Rating . | . . . . . . . . Part Schematics Acquired 2 | . . . . 2 . . . Parts Built . | . . . . . . . . Authchips . | . . . . . . . . Time . | . . . . . . . . Total Part Build Rating . | . . . . . . . . Part Studies Acquired . | . . . . . . . . Parts Repaired . | . . . . . . . . Time . | . . . . . . . . Parts Recycled . | . . . . . . . . Recycled Matter . | . . . . . . . . Retrieved Matter . | . . . . . . . . Retrieved Components 3 | . . . . . . 3 . Parts Scanalyzed . | . . . . . . . . Part Schematics Acquired . | . . . . . . . . Parts Damaged . | . . . . . . . . Bothacking | -11 -10 -9 -9 -7 -6 -6 -6 ------------ Run | Yrd Mat Mat Min Zio Pro Fac Low Used RIF Installer . | . . . . . . . . Robots Hacked . | . . . . . . . . Non-combat . | . . . . . . . . Combat . | . . . . . . . . Robot Hacks Applied . | . . . . . . . . Relay Couplers Released . | . . . . . . . . Fabnet Peak Effective % . | . . . . . . . . Robots Rewired . | . . . . . . . . Allies Hacked . | . . . . . . . . Hacks Repelled . | . . . . . . . . Allies | -11 -10 -9 -9 -7 -6 -6 -6 -------- Run | Yrd Mat Mat Min Zio Pro Fac Low Total Allies 6 | . . . . 6 . . . Largest Group 6 | . . . . 6 6 5 . Highest-Rated Group 348 | . . . . 348 348 311 . Highest-Rated Ally 96 | . . . . 96 96 96 . Total Orders . | . . . . . . . . Ally Attacks 83 | . . . . . 52 31 . Total Damage 2604 | . . . . . 1571 1033 . Kills 22 | . . . . . 16 6 . Allies Corrupted . | . . . . . . . . Allies Melted . | . . . . . . . . Intel | -11 -10 -9 -9 -7 -6 -6 -6 ------- Run | Yrd Mat Mat Min Zio Pro Fac Low Active Infowar (turns) 2109 | 4 99 110 184 276 621 784 31 Optics 1437 | . . . . 1 621 784 31 Sensors 501 | . . . . 52 . 449 . Terrain 1325 | 4 99 110 184 223 . 705 . Robot Analysis Total . | . . . . . . . . Derelict Logs Recovered 3 | . . . 1 1 1 . . Drone Launches . | . . . . . . . . Drone Recoveries . | . . . . . . . . Zionite Intel Received 1 | . . . . . . 1 . Component Stockpiles 1 | . . . . . . 1 . Exploration | -11 -10 -9 -9 -7 -6 -6 -6 ------------- Run | Yrd Mat Mat Min Zio Pro Fac Low Turns Passed 2611 | 53 99 110 184 729 621 784 31 Spaces Moved 3153 | 51 174 192 403 1150 508 668 7 Core 270 | 51 162 . . . . 51 6 Treads . | . . . . . . . . Legs 255 | . . . 5 . 189 61 . Wheels . | . . . . . . . . Hover 502 | . . . . . . 502 . Flight 2126 | . 12 192 398 1150 319 54 1 Fastest Speed 32 | 50 50 50 34 34 32 35 35 Average Speed 61 | 50 51 50 37 34 102 96 47 Slowest Speed 200 | 50 100 50 120 114 200 120 50 Overloaded Moves . | . . . . . . . . Propulsion Burnouts . | . . . . . . . . Robots Hopped 1 | . . . 1 . . . . Potential Cave-ins . | . . . . . . . . Cave-ins Triggered . | . . . . . . . . Exploration Rate (%) 41 | 3 43 21 80 90 66 23 4 Regions Visited 7 Branch Regions 4 Pre-discovered Areas 4 | . . . 1 3 . . . Known Exits Taken 2 | . . . . . 1 1 . Unknown Exits Taken 5 | 1 1 1 1 1 . . . Scrap Searched 4 | . . . . 2 2 . . Spaces Dug . | . . . . . . . . Terrain Destroyed 42 | . 4 . 29 . 9 . . Melee . | . . . . . . . . Projectile . | . . . . . . . . AOE 42 | . 4 . 29 . 9 . . Terrain Rammed . | . . . . . . . . Walls Destroyed . | . . . . . . . . Machines Disabled . | . . . . . . . . Actions | -11 -10 -9 -9 -7 -6 -6 -6 --------- Run | Yrd Mat Mat Min Zio Pro Fac Low Total 3741 | 69 181 203 426 1481 597 765 19 Wait 438 | . . . 2 317 69 47 3 Move 3144 | 50 173 191 400 1149 507 667 7 Hop 1 | . . . 1 . . . . Pick Up 21 | 8 1 2 1 2 2 5 . Fast Attach 23 | . 1 3 4 2 6 7 . Attach 16 | 5 1 2 . 1 . 7 . Detach 4 | 1 1 1 . . . 1 . Swap 17 | . 1 . 8 4 3 1 . Drop 20 | . 1 2 6 5 3 3 . Fire 36 | 5 2 2 4 . 7 16 . Melee 21 | . . . . 1 . 11 9 Ram . | . . . . . . . . Kick . | . . . . . . . . Crush . | . . . . . . . . Escape Stasis . | . . . . . . . . Rewire . | . . . . . . . . Trap . | . . . . . . . . Miscellaneous . | . . . . . . . . Route ------- -11/Scrapyard -10/Materials -9/Materials -9/Mines (discovered 3 exits: [*Mat x2] / *Zio) -7/Zion -6/Proximity Caves -6/Factory -6/Lower Caves (discovered 1 exit: Low) History --------- Turn | Location | Event 7 | -11/Scrapyard | Discovered new exit (range 15) 54 | -11/Scrapyard | Entered Materials 151 | -10/Materials | Discovered new exit (range 4) 153 | -10/Materials | Entered another Materials area 153 | -9/Materials | Evolved 2 slots: Propulsion x1, Utility x1 228 | -9/Materials | Discovered new exit (range 21) 263 | -9/Materials | Entered Mines 366 | -9/Mines | Found a damaged Exp. Sensor Array with a note attached 368 | -9/Mines | Found Prototype Device 435 | -9/Mines | A Derelict revealed a hidden shortcut to a safe place 435 | -9/Mines | Discovered new exit (range 5) 435 | -9/Mines | Discovered new exit (range 8) 442 | -9/Mines | Learned location of Zion (-7) 447 | -9/Mines | Entered Zion 597 | -7/Zion | Build established: Scavenger-Mutant 612 | -7/Zion | Found CR-A16's Pointy Stick 652 | -7/Zion | Given the Hacking Drone Bay 653 | -7/Zion | Found Prototype Device 670 | -7/Zion | Identified Hacking Drone Bay 671 | -7/Zion | Identified Exp. Sensor Array 688 | -7/Zion | Given A8's code to call for help 722 | -7/Zion | Found Prototype Device 723 | -7/Zion | Identified Mobile Refinery Mk. CCLXVII 762 | -7/Zion | Learned location of Recycling (-7) 832 | -7/Zion | Met Imprinter 838 | -7/Zion | Imprinted 840 | -7/Zion | Declared Zion's savior 907 | -7/Zion | Build established: Hacker-Mutant 975 | -7/Zion | Discovered new exit (range 15) 993 | -7/Zion | Enhanced Grunt warped into view, answering call for help 996 | -7/Zion | Enhanced Grunt warped into view, answering call for help 1176 | -7/Zion | Entered Proximity Caves 1176 | -6/Proximity Caves | Accompanied by 6 allies 1261 | -6/Proximity Caves | Attracted the attention of an 0b10 base 1265 | -6/Proximity Caves | Core integrity fell below 50% 1290 | -6/Proximity Caves | Learned location of 2 exits from Lower Caves 1290 | -6/Proximity Caves | Learned location of 2 exits from Upper Caves 1290 | -6/Proximity Caves | Learned location of 1 exit from Research 1290 | -6/Proximity Caves | Learned Factory emergency access door positions 1290 | -6/Proximity Caves | Learned Extension security intel 1290 | -6/Proximity Caves | Learned Research terminal intel 1300 | -6/Proximity Caves | Lost 4 parts (2n2w) 1303 | -6/Proximity Caves | Identified exit to Factory 1797 | -6/Proximity Caves | Entered Factory 1797 | -6/Factory | Accompanied by 5 allies 1797 | -6/Factory | Evolved 6 slots: Power x1, Propulsion x1, Utility x3, Weapon x1 2360 | -6/Factory | Retrieved Zion intel report: Component Stockpiles 2446 | -6/Factory | Lost 7 parts (1p3n1u2w) 2534 | -6/Factory | Lost 3 parts (1p1n1u) 2570 | -6/Factory | Core integrity fell below 50% 2573 | -6/Factory | Discovered new exit (range 16) 2578 | -6/Factory | Identified exit to Lower Caves 2581 | -6/Factory | Entered Lower Caves 2582 | -6/Lower Caves | Identified exit to Lower Caves 2603 | -6/Lower Caves | Core integrity fell below 20% 2612 | -6/Lower Caves | Destroyed by P-60 Hacker with Shock Rifle Last Messages --------------- 02564_ Acquired Fusion Compressor. 02566_ Acquired 20 matter. 02573_ EXIT=FOUND 02574_ K-01 Serf cleans the Construction Platform. 02578_ KDKBALR6H|OH>=LB5GCT 02578_ EXIT=IDENTIFIED: LOWER CAVES LOCATION=LOWER CAVES GOAL=ESCAPE Loading 1 Lower Caves exit... 02582_ VTOL Module destroyed. 02587_ S-27 Virus destroyed. 02594_ Imp. Targeting Computer destroyed. 02602_ Lgt. Nuclear Core fries itself beyond repair. 02602_ S-27 Virus destroyed. 02604_ Autogun fries itself beyond repair. 02606_ ZNC7A/EMP